[Event "85th Tata Steel Masters 2023"]
[Site "Wijk aan Zee"]
[Date "2023.01.28"]
[Round "12.2"]
[White "Van Foreest, Jorden"]
[Black "Giri, Anish"]
[Result "1/2-1/2"]
[ECO "D38"]
[WhiteElo "2681"]
[BlackElo "2764"]
[Annotator "TA"]
[PlyCount "158"]
[EventDate "2023.01.10"]
[EventType "tourn"]
[EventCountry "NED"]
[SourceTitle "playchess.com"]
[Source "ChessBase"]
[SourceQuality "1"]
[TimeControl "40/6000+30:30/3000+30:900+30"]

{[%evp 10,158,27,0,0,12,22,-33,-14,-37,-40,-42,-26,-29,-37,-41,-30,-41,-13,-36,-11,-20,-8,-8,-10,-8,-12,0,0,-38,0,0,64,54,37,33,42,55,264,252,254,229,246,90,97,37,44,8,141,104,100,0,9,0,6,10,15,10,16,0,0,0,0,0,0,0,0,0,0,0,0,0,0,0,0,0,0,0,0,0,0,0,0,0,0,0,0,0,0,0,8,0,0,0,0,0,12,4,32,0,0,0,0,0,0,0,0,0,0,0,0,0,0,6,0,0,0,0,0,0,7,0,0,0,0,-808,0,0,0,0,0,0,0,0,0,0,0,0,0,0,0,0,0,0,0,0,0,0,0,0,0]} 1. d4 {[%emt 0:00:05]} Nf6 {[%emt 0:00:10]} 2. c4 {[%emt 0:00:09]} e6 {[%emt 0:00:16]} 3. Nf3 {[%emt 0:00:08]} d5 {[%emt 0:02:10]} 4. cxd5 {[%emt 0:00:09]} exd5 {[%emt 0:00:08]} 5. Nc3 {[%emt 0:00:08]} Bb4 {[%emt 0:00:42]} 6. Bf4 {[%emt 0:03:56]} Ne4 {[%emt 0:01:09]} 7. Rc1 {[%emt 0:00:19]} Nc6 {[%emt 0:00:08]} 8. h4 {[%emt 0:00:06]} (8. Nd2 $11) 8... Bf5 $15 {[%emt 0:03:58]} 9. e3 {[%emt 0:00:52]} Nxc3 $1 {[%emt 0:05:22]} 10. bxc3 {[%emt 0:00:09]} Ba3 {[%emt 0:03:03]} 11. Rb1 $1 {[%emt 0:00:16]} Bxb1 {[%emt 0:00:35]} 12. Qxb1 {[%emt 0:00:08]} Rb8 {[%emt 0:03:47]} 13. Qb3 {[%emt 0:00:09]} Bd6 {[%emt 0:12:34]} 14. Qxd5 {[%emt 0:00:08]} Bxf4 {[%emt 0:00:05]} 15. Qe4+ {[%emt 0:00:06]} Qe7 {[%emt 0:00:04]} 16. Qxf4 {[%emt 0:00:04]} Qa3 {[%emt 0:00:18]} 17. Qe4+ {[%emt 0:00:06]} Ne7 {[%emt 0:00:06]} 18. Qc2 {[%emt 0:00:07]} (18. Bb5+ c6 19. Be2 Qxc3+ 20. Kf1 Qa5 $17) 18... Nd5 {[%emt 0:00:24]} 19. c4 {[%emt 0:00:39]} Nc3 {[%emt 0:28:05]} 20. c5 {[%emt 0:04:06]} b6 {[%emt 0:05:59]} (20... Qb4 $11) 21. Bc4 $1 $14 {[%emt 0:08:03]} bxc5 {[%emt 0:00:33]} 22. O-O {[%emt 0:03:04]} O-O {[%emt 0:08:36]} 23. h5 $1 {[%emt 0:11:59]} Qb4 $2 {[%emt 0:07:41]} (23... Rb6 $14) 24. Ng5 $1 $18 {[%emt 0:04:14]} g6 {[%emt 0:00:20]} 25. Qd3 {[%emt 0:00:07]} Rb6 {[%emt 0:14:01] [#]} (25... gxh5 $2 26. Qxh7#) 26. dxc5 $2 {[%emt 0:12:57]} (26. Rc1 $1 $18) 26... Rc6 $16 {[%emt 0:00:24]} (26... Qxc5 27. Nxf7 Rxf7 28. Qxc3 $16) 27. hxg6 {[%emt 0:07:12]} ({Better is} 27. Nxf7 $16 Rxf7 28. Qd8+ (28. Bxf7+ Kxf7 29. Qd7+ Kf8 $11) 28... Kg7 29. h6+ (29. Bxf7 Kxf7 30. Qd7+ Kf8 $11) 29... Kxh6 30. Bxf7 Ne2+ 31. Kh2 Qxc5 32. g3) 27... Rxg6 $14 {[%emt 0:00:05]} 28. f4 {[%emt 0:05:35]} (28. Nf3 $5 {[%cal Rf3e5]} Qb2 29. Qf5 $14) 28... Rg7 {[%emt 0:00:08]} (28... c6 $11 {keeps the balance.}) 29. Rc1 {[%emt 0:13:43]} Na4 {[%emt 0:00:07]} 30. Ne4 {[%emt 0:06:32]} (30. Nxf7 $16 {aiming for Rb1.} Rgxf7 31. a3) 30... Nb2 {[%emt 0:04:02]} (30... Qb2 31. Qc2 $16) 31. Qb3 {[%emt 0:02:46]} (31. Nf6+ {is more complex.} Kh8 32. Qd4 Nxc4 33. Nh5) 31... Qxb3 {[%emt 0:01:38]} 32. Bxb3 {[%emt 0:00:05]} Kh8 {[%emt 0:04:54]} 33. Rb1 {[%emt 0:03:41]} Nd3 $1 {[%emt 0:00:10]} 34. Bc2 {[%emt 0:03:20]} (34. Bc4 $5 {[%cal Rc4d3]} f5 {[%mdl 64] Deflection} 35. Ng5 $11 (35. Bxd3 fxe4 36. Bxe4 Re7 $11)) 34... f5 $1 {[%emt 0:00:36]} (34... Rd8 35. Rd1 $16) 35. Bxd3 {[%emt 0:01:19]} fxe4 {[%emt 0:00:04]} 36. Bxe4 {[%emt 0:00:04]} Re7 {[%emt 0:00:06]} 37. Rb4 {[%emt 0:00:04]} Rd8 {[%emt 0:03:34]} 38. Kf2 {[%emt 0:00:40]} Rd2+ {[%emt 0:00:06]} 39. Kf3 {[%emt 0:00:02]} Rxa2 {[%emt 0:00:05]} 40. g4 {[%emt 0:00:13]} h6 {[%emt 0:01:37]} 41. f5 {[%emt 0:59:07]} Kg7 {[%emt 0:52:21]} 42. Kf4 {[%emt 0:00:35]} Ra3 {[%emt 0:00:00]} 43. Rd4 {[%emt 0:00:00]} Kf6 {[%emt 0:00:00]} 44. Bd3 {[%emt 0:00:00]} Ra2 {[%emt 0:00:00]} 45. e4 {[%emt 0:00:00]} Rf2+ {[%emt 0:00:00]} 46. Ke3 {[%emt 0:00:00]} Rg2 {[%emt 0:00:00]} 47. Kf3 {[%emt 0:00:00]} Rd2 {[%emt 0:00:00]} 48. Rd8 {[%emt 0:00:00]} Ke5 {[%emt 0:00:00]} 49. Ke3 {[%emt 0:00:00]} Rg2 {[%emt 0:00:00]} 50. Kf3 {[%emt 0:00:00]} Rd2 {[%emt 0:00:00]} 51. c6 {[%emt 0:00:00]} a5 {[%emt 0:00:00]} 52. Ke3 {[%emt 0:00:00]} Rg2 {[%emt 0:00:00]} 53. Be2 {[%emt 0:00:00]} Kf6 {[%emt 0:00:00]} (53... Rh2 {simplifies} 54. Ra8 Rxe2+ 55. Kxe2 Kxe4 56. Rd8 Rg7) 54. Bf3 {[%emt 0:00:00]} Rc2 $1 {[%emt 0:00:00]} 55. Kf4 {[%emt 0:00:00]} a4 {[%emt 0:00:00]} (55... Rxc6 $2 56. e5+ Rxe5 57. Bxc6 $18) 56. Rg8 {[%emt 0:00:00]} a3 {[%emt 0:00:00]} (56... Rxc6 $2 57. Rg6+ Kf7 58. Rxc6 $18) 57. Rf8+ $1 {[%emt 0:00:00]} (57. e5+ $2 Rxe5 58. Rf8+ (58. Rg6+ $2 Ke7 $19) 58... Kg7 $19) 57... Kg7 {[%emt 0:00:00]} 58. Ra8 {[%emt 0:00:00]} a2 {[%emt 0:00:00]} ({Much less strong is} 58... Rxc6 59. e5 (59. Rxa3 Rd7 $11) 59... Rc4+ 60. Be4 $14) 59. e5 {[%emt 0:00:00]} Re8 $1 {[%emt 0:00:00]} (59... Rc4+ $2 60. Be4 $18) 60. Ra7 {[%emt 0:00:00]} Kf8 {[%emt 0:00:00]} 61. e6 {[%emt 0:03:35]} Rf2 $1 {[%emt 0:00:00]} 62. Kg3 {[%emt 0:00:28]} Rd2 {[%emt 0:02:33]} 63. Kf4 {[%emt 0:11:26]} Rf2 {[%emt 0:02:26]} 64. Ke3 {[%emt 0:00:19]} Rb2 {[%emt 0:02:19]} 65. Kd4 {[%emt 0:02:58]} Kg7 {[%emt 0:02:48]} 66. Rxc7+ {[%emt 0:06:15]} Kf6 {[%emt 0:00:05]} 67. Rf7+ {[%emt 0:00:07]} Kg5 {[%emt 0:00:02]} 68. Ra7 {[%emt 0:00:07]} Rd8+ {[%emt 0:00:34]} 69. Kc3 {[%emt 0:00:00]} Rf2 {[%emt 0:00:00]} 70. Be4 {[%emt 0:00:00]} Re2 {[%emt 0:00:00]} 71. Bc2 {[%emt 0:04:23]} Rd6 {[%emt 0:04:38]} 72. Rxa2 {[%emt 0:00:25]} (72. Rg7+ Kf4 73. Ra7 Rxc6+ 74. Kb3 Rexc2 $19) 72... Rxc6+ {[%emt 0:01:02]} 73. Kd3 {[%emt 0:00:07]} Rh2 {[%emt 0:01:02]} 74. e7 {[%emt 0:02:08]} Rc8 $1 {[%emt 0:00:45]} 75. Ra6 {[%emt 0:01:27]} Rcxc2 {[%emt 0:02:26]} 76. e8=Q {[%emt 0:00:07]} (76. Rg6+ $2 {is a self mate.} Kf4 77. e8=Q Rhd2#) 76... Rhd2+ {[%emt 0:00:02]} 77. Ke3 {[%emt 0:00:05]} Re2+ {[%emt 0:00:03]} 78. Kd3 {[%emt 0:00:35]} Red2+ {[%emt 0:00:27]} 79. Ke3 {[%emt 0:00:04]} Re2+ {[%emt 0:00:02]} 1/2-1/2

[Event "85th Tata Steel Masters 2023"]
[Site "Wijk aan Zee"]
[Date "2023.01.28"]
[Round "12.3"]
[White "Carlsen, Magnus"]
[Black "Praggnanandhaa R"]
[Result "1/2-1/2"]
[ECO "D40"]
[WhiteElo "2859"]
[BlackElo "2684"]
[Annotator "TA"]
[PlyCount "134"]
[EventDate "2023.01.10"]
[EventType "tourn"]
[EventCountry "NED"]
[SourceTitle "playchess.com"]
[Source "ChessBase"]
[SourceQuality "1"]
[TimeControl "40/6000+30:30/3000+30:900+30"]

{[%evp 12,134,0,0,14,0,0,0,8,32,26,-23,-7,-29,0,0,0,0,37,31,24,25,50,28,17,23,33,16,24,2,33,33,93,56,52,49,91,85,102,0,0,0,0,0,0,0,8,0,0,0,0,0,0,0,0,0,0,0,0,0,0,0,0,0,0,0,0,-730,0,0,0,0,0,0,0,0,0,0,0,0,0,0,0,0,0,0,0,0,0,0,0,0,0,0,0,0,0,0,0,0,0,0,0,0,0,0,0,0,0,0,0,0,0,0,0,0,0,0,0,0,0,0,0,0,0]} 1. Nf3 {[%emt 0:01:30]} Nf6 {[%emt 0:01:01]} 2. c4 {[%emt 0:02:20]} c5 {[%emt 0:00:19]} 3. Nc3 {[%emt 0:00:12]} Nc6 {[%emt 0:00:05]} 4. e3 {[%emt 0:00:35]} e6 {[%emt 0:00:50]} 5. d4 {[%emt 0:00:09]} d5 {[%emt 0:00:14]} 6. a3 {[%emt 0:01:19]} dxc4 {[%emt 0:01:12]} 7. Bxc4 {[%emt 0:00:09]} a6 {[%emt 0:00:19] D40: Queen's Gambit Declined: Semi-Tarrasch with 5 e3.} 8. Bd3 {[%emt 0:00:57]} cxd4 {[%emt 0:01:34]} 9. exd4 {[%emt 0:00:10]} g6 {[%emt 0:00:50]} 10. Bg5 {[%emt 0:03:11]} Bg7 {[%emt 0:01:16] [#]} 11. Be4 $146 {[%emt 0:02:52]} (11. d5 exd5 12. O-O O-O $17) (11. Ne4 {feels stronger.}) ({Predecessor:} 11. Ne4 h6 12. Bxf6 Bxf6 13. Nxf6+ Qxf6 14. O-O O-O 15. Be4 Bd7 16. Qd2 Kg7 17. Rac1 {½-½ Nepomniachtchi,I (2766)-Giri,A (2708) Wch Rapid Almaty 2022 (5)}) 11... Ne7 $11 {[%emt 0:21:14]} 12. h4 {[%emt 0:01:14][%cal Bh2h4,Bh4h5][%mdl 32]} h6 {[%emt 0:02:56]} 13. Bxf6 {[%emt 0:00:48]} Bxf6 {[%emt 0:00:02]} 14. Qd2 {[%emt 0:00:51]} Nd5 {[%emt 0:15:56]} 15. h5 {[%emt 0:13:59]} g5 {[%emt 0:01:17]} 16. Ne5 {[%emt 0:07:55]} Bg7 {[%emt 0:11:18]} 17. Bxd5 {[%emt 0:12:26]} exd5 {[%emt 0:00:05]} 18. O-O {[%emt 0:00:07]} Be6 {[%emt 0:08:27]} 19. Rae1 {[%emt 0:00:40][%cal Oe5g6,Ba1e1,Be1e3,Be3b3][%mdl 32]} O-O {[%emt 0:02:21]} 20. Re3 {[%emt 0:04:25]} Bf5 {[%emt 0:10:35]} (20... Rc8 $5) 21. Qd1 {[%emt 0:06:40]} Re8 {[%emt 0:00:34]} ({Black should try} 21... Qd6 $14) 22. Rfe1 {[%emt 0:03:37][%cal Oe5f7]} Be6 {[%emt 0:02:41]} 23. Na4 $1 {[%emt 0:02:19]} b6 {[%emt 0:04:33] Against Nc5} 24. Rb3 {[%emt 0:03:08] White is much more active.} Qc7 {[%emt 0:03:13]} 25. Nxb6 {[%emt 0:11:22]} (25. Rxb6 $16 {aiming for Rc6.} Bd7 26. Nxd7 Rxe1+ 27. Qxe1 Qxd7 28. Qd1) 25... Rab8 {[%emt 0:00:37] ...Bxe5 is the strong threat.} 26. Na4 {[%emt 0:00:02] Excellent horsemanship.} Rxb3 {[%emt 0:06:55]} 27. Qxb3 {[%emt 0:00:02]} Bxe5 {[%emt 0:00:36]} 28. dxe5 {[%emt 0:01:03]} Qa5 {[%emt 0:04:01]} 29. Qd1 {[%emt 0:03:16]} Bg4 $1 {[%emt 0:01:37][%mdl 64] [#] Deflection} 30. f3 {[%emt 0:00:15]} (30. Qxg4 $2 Qxe1+ 31. Kh2 Qxf2 $19) 30... Bd7 {[%emt 0:00:13]} 31. Nc3 {[%emt 0:00:39]} Qc5+ {[%emt 0:00:35]} 32. Kh2 {[%emt 0:05:09]} d4 {[%emt 0:01:13][%cal Oe8e6]} 33. Re4 {[%emt 0:00:24]} dxc3 {[%emt 0:01:25]} 34. Qxd7 {[%emt 0:00:03]} c2 {[%emt 0:03:27]} 35. Qxe8+ {[%emt 0:00:34][%mdl 4096] Endgame} Kg7 {[%emt 0:00:02]} 36. b4 {[%emt 0:05:54]} Qc3 {[%emt 0:00:27]} (36... Qc7 $5 37. Re1 $8 Qc4 $11) 37. f4 {[%emt 0:05:24][%cal Bf3f4,Bf4f5,Bf5f6][%mdl 32]} c1=Q {[%emt 0:00:35]} (37... c1=B 38. f5 Bf4+ 39. Rxf4 f6 40. Qe7+ Kh8 41. exf6) 38. f5 {[%emt 0:00:02] White wants to mate with f6+. Chess con chili.} Qc7 {[%emt 0:01:07] Threatens to win with ...Qd1.} (38... Q1xa3 $2 39. f6+ Kh7 40. Qxf7+ Kh8 41. Qg7#) 39. f6+ {[%emt 0:00:08]} Kh7 {[%emt 0:00:04]} 40. Qf8 {[%emt 0:00:07][%csl Gf6][%cal Rf8g7] The position is equal.} Qxe5+ $1 {[%emt 0:00:07][%mdl 64] [#] Decoy} 41. Rxe5 {[%emt 0:50:07][%csl Gf6][%cal Rf8g7]} Qf4+ {[%emt 0:50:03]} 42. Kg1 {[%emt 0:01:24][%csl Gf6][%cal Rf8g7]} Qc1+ {[%emt 0:01:03]} 43. Kf2 {[%emt 0:01:53][%csl Gf6][%cal Rf8g7]} Qf4+ {[%emt 0:00:36]} 44. Ke2 {[%emt 0:00:10][%csl Gf6][%cal Rf8g7]} Qxe5+ {[%emt 0:00:05] KQ-KQ} 45. Kd3 {[%emt 0:00:05][%csl Gf6][%cal Rf8g7]} Qxf6 {[%emt 0:04:30]} 46. Qe8 {[%emt 0:02:06]} Qf1+ {[%emt 0:00:00]} 47. Kd4 {[%emt 0:00:00]} Kg7 {[%emt 0:00:00]} (47... Qxg2 $2 48. Qe4+ Qxe4+ 49. Kxe4 $18) 48. Qe5+ {[%emt 0:00:00]} Kg8 {[%emt 0:00:00]} 49. Qb8+ {[%emt 0:00:00]} Kg7 {[%emt 0:00:00]} 50. Qg3 {[%emt 0:00:00]} Qd1+ {[%emt 0:00:00]} 51. Kc5 {[%emt 0:00:00]} Qxh5 {[%emt 0:00:00]} 52. Qe5+ {[%emt 0:00:00]} Kg8 {[%emt 0:00:00]} 53. a4 {[%emt 0:00:00]} Qd1 {[%emt 0:00:00]} 54. a5 {[%emt 0:00:00] Kb6 would be deadly.} Qg1+ {[%emt 0:00:00]} 55. Qd4 {[%emt 0:00:00]} Qxg2 {[%emt 0:00:00]} 56. b5 {[%emt 0:00:00]} g4 {[%emt 0:00:00]} 57. bxa6 {[%emt 0:00:00] And now a7 would win.} g3 {[%emt 0:00:00]} 58. a7 {[%emt 0:00:00] Strongly threatening Qd8+.} Qa8 {[%emt 0:00:00] Prevents Qd8+.} 59. Kd6 {[%emt 0:00:00]} g2 {[%emt 0:04:41] ( -> ...Qd8+)} 60. Ke5 {[%emt 0:00:00]} Qf3 {[%emt 0:01:17]} 61. Qd8+ {[%emt 0:00:00]} Kh7 {[%emt 0:00:00]} (61... Kg7 $5 62. a8=Q $8 (62. Qb6 Qg3+ 63. Kf5 Qg5+ 64. Ke4 g1=Q 65. Qxg1 Qxg1 66. a8=Q Qg2+ 67. Kf4 Qxa8 68. a6 Qxa6 69. Ke4 h5 70. Kd4 Qd6+ 71. Kc4 h4 72. Kc3 h3 73. Kc2 h2 74. Kb3 h1=Q 75. Kc2 Qb4 76. Kd3 Qhe4#) 62... Qxa8 63. Qxa8 g1=Q $11) 62. a8=Q {[%emt 0:00:00][%csl Ga8][%cal Rd8g8]} (62. a8=B Qg3+ 63. Kf6 Qg6+ 64. Ke5 g1=Q 65. Be4 Qe3 66. Qh4 Kg7) (62. Qd5 {leads to mate.} Qxd5+ 63. Kxd5 g1=Q 64. a8=Q Qh1+ 65. Kd4 Qxa8 66. Ke5 Qxa5+ 67. Kd4 h5 68. Ke3 h4 69. Kf4 Qd5 70. Ke3 h3 71. Ke2 h2 72. Ke3 h1=Q 73. Ke2 Qhf3+ 74. Ke1 Qdd1#) 62... Qc3+ {[%emt 0:00:00]} (62... g1=Q {gets mated.} 63. Qh8+ Kg6 64. Qhg8+ (64. Qxf3 Qa1+ 65. Kf4 Qxh8 $18) 64... Kh5 65. Qxf3+ Kh4 66. Qxg1 f6+ 67. Qxf6+ Kh5 68. Qgg6#) 63. Qd4 {[%emt 0:00:00]} Qxd4+ {[%emt 0:00:00][%mdl 64] Remove Defender} 64. Kxd4 {[%emt 0:00:00]} g1=Q+ {[%emt 0:00:00]} 65. Kd3 {[%emt 0:00:00]} Qd1+ {[%emt 0:00:00]} 66. Ke3 {[%emt 0:00:00]} Qe1+ {[%emt 0:00:00]} 67. Kd3 {[%emt 0:00:00] Threatening mate with Qe4+.} Qd1+ {[%emt 0:00:00] A fantastic game!   Weighted Error Value: White=0.06 (flawless) /Black=0.06 (flawless)} 1/2-1/2

[Event "85th Tata Steel Masters 2023"]
[Site "Wijk aan Zee"]
[Date "2023.01.28"]
[Round "12.5"]
[White "Gukesh D"]
[Black "Aronian, Levon"]
[Result "1/2-1/2"]
[ECO "D38"]
[WhiteElo "2725"]
[BlackElo "2735"]
[Annotator "TA"]
[PlyCount "143"]
[EventDate "2023.01.10"]
[EventType "tourn"]
[EventCountry "NED"]
[SourceTitle "playchess.com"]
[Source "ChessBase"]
[SourceQuality "1"]
[TimeControl "40/6000+30:30/3000+30:900+30"]

{[%evp 12,143,14,16,28,12,31,14,18,17,18,12,18,12,20,20,21,27,22,27,39,9,8,8,0,0,8,0,0,0,0,0,0,0,0,0,0,0,0,0,22,18,76,76,104,104,104,109,110,110,110,110,110,104,104,101,111,111,240,66,74,74,74,74,74,74,74,74,74,76,81,4,35,35,41,41,41,44,96,47,54,21,21,0,0,0,0,0,54,0,0,0,0,0,0,0,0,0,0,0,0,0,0,0,0,0,0,0,12833,0,0,0,0,0,0,0,0,0,0,0,0,0,0,0,0,0,0,0,0,0,0,0,0,0]} 1. d4 {[%emt 0:00:45]} Nf6 {[%emt 0:00:06]} 2. c4 {[%emt 0:00:16]} e6 {[%emt 0:00:06]} 3. Nf3 {[%emt 0:00:15]} d5 {[%emt 0:00:06]} 4. Nc3 {[%emt 0:00:09]} Bb4 {[%emt 0:00:06]} 5. Qa4+ {[%emt 0:00:37]} Nc6 {[%emt 0:00:07]} 6. e3 {[%emt 0:00:21]} O-O {[%emt 0:00:07]} 7. Bd2 {[%emt 0:00:07]} Qe8 {[%emt 0:00:39][%cal Oc6d4] D38: Queen's Gambit Declined: Ragozin Defence (4 Nf3 Bb4).} 8. Qb3 {[%emt 0:12:20] [#]} a5 $146 {[%emt 0:07:43][%cal Oa5a4]} ({Predecessor:} 8... dxc4 9. Bxc4 a6 10. Be2 Bd6 11. Ng5 e5 12. d5 Ne7 13. Nge4 Nxe4 14. Nxe4 f5 15. Nxd6 cxd6 {0-1 Polak,T (2507)-Lenic,L (2575) HUN-chT 0910 2009 (2)}) 9. a3 {[%emt 0:01:34]} Bxc3 {[%emt 0:00:41]} 10. Bxc3 {[%emt 0:02:48]} b6 {[%emt 0:00:12]} 11. cxd5 {[%emt 0:11:40]} exd5 {[%emt 0:00:06]} 12. Bb5 {[%emt 0:00:09]} Ba6 {[%emt 0:05:37]} 13. Bxa6 {[%emt 0:03:48]} Rxa6 {[%emt 0:00:04]} 14. O-O {[%emt 0:00:09]} Qe6 {[%emt 0:06:19]} 15. Rac1 {[%emt 0:03:09]} Ne4 {[%emt 0:00:48]} 16. Rfd1 {[%emt 0:00:23]} Ne7 {[%emt 0:05:19]} 17. Qc2 {[%emt 0:02:16]} Rc8 {[%emt 0:01:21]} 18. Be1 {[%emt 0:05:40]} h6 {[%emt 0:00:47]} 19. Qe2 {[%emt 0:07:57]} Ra7 {[%emt 0:04:03]} 20. Rc2 {[%emt 0:00:10]} c5 {[%emt 0:02:45]} 21. dxc5 {[%emt 0:01:05]} bxc5 {[%emt 0:00:23]} 22. Nd2 {[%emt 0:01:38]} Nxd2 {[%emt 0:04:54]} 23. Bxd2 {[%emt 0:02:32]} Nf5 {[%emt 0:01:24] ...Nd4 is the strong threat.} 24. Bc3 {[%emt 0:28:28] Repels Nd4} a4 {[%emt 0:03:45]} 25. h3 {[%emt 0:04:48]} Rd7 {[%emt 0:05:10]} 26. Qg4 {[%emt 0:05:29]} d4 {[%emt 0:47:26] [#]} 27. Bxd4 $1 $16 {[%emt 0:01:28][%mdl 64] Pin} Rcd8 {[%emt 0:01:31] Hoping for ...h5.} (27... g6 28. Rdd2) 28. Rxc5 {[%emt 0:00:24]} Nxd4 {[%emt 0:00:04]} 29. exd4 {[%emt 0:01:10][%cal Od4d5]} Qxg4 {[%emt 0:00:04]} 30. hxg4 {[%emt 0:00:04]} Rxd4 {[%emt 0:00:05]} 31. Rxd4 {[%emt 0:00:10]} Rxd4 {[%emt 0:00:03][%mdl 4096] Endgame KR-KR} 32. Rc8+ {[%emt 0:05:30]} Kh7 {[%emt 0:00:01]} 33. Rb8 {[%emt 0:00:08]} Rd1+ {[%emt 0:00:08]} 34. Kh2 {[%emt 0:00:05]} g5 {[%emt 0:00:13]} (34... Rd5 $16 35. Rb6 Ra5) 35. g3 $2 {[%emt 0:02:08]} (35. Rb4 $18) 35... Rc1 {[%emt 0:02:47]} 36. Kg2 {[%emt 0:00:35]} Rc2 {[%emt 0:00:55]} 37. Rb6 {[%emt 0:01:27]} Kg7 {[%emt 0:01:55]} 38. Kf3 {[%emt 0:02:04]} Rd2 {[%emt 0:00:09]} 39. Ke3 {[%emt 0:00:26]} Rc2 {[%emt 0:00:02]} 40. Rb4 {[%emt 0:00:22]} Kg6 {[%emt 0:00:36]} 41. f4 {[%emt 0:11:47]} (41. Kf3 $16) 41... Rg2 {[%emt 0:10:42]} 42. Kf3 {[%emt 0:00:31]} ({Resist} 42. Rxa4 Rxb2 43. Rb4 Rg2 $16) 42... Rc2 {[%emt 0:00:26]} 43. Rb6+ {[%emt 0:02:14]} Kg7 {[%emt 0:00:34]} 44. Ke4 {[%emt 0:01:50]} Rd2 {[%emt 0:00:48]} ({Black should play} 44... Rg2 $14) 45. Rb4 {[%emt 0:03:13]} (45. Ke5 $16) 45... Kf6 $14 {[%emt 0:01:58]} 46. f5 {[%emt 0:07:29]} Rg2 $1 {[%emt 0:04:06]} 47. Kd5 {[%emt 0:15:58]} ({But not} 47. Rxa4 $6 Rxb2 48. Rb4 Ra2 $16) 47... Rxg3 {[%emt 0:00:57]} 48. Rxa4 {[%emt 0:00:05]} h5 {[%emt 0:00:03][%mdl 64] Deflection} 49. gxh5 {[%emt 0:05:14]} ({White should try} 49. Ra6+ $11 Kg7 50. gxh5) 49... Kxf5 {[%emt 0:02:26]} 50. Ra7 {[%emt 0:00:08]} ({Better is} 50. b4 $1 $14 g4 51. Ra8) 50... g4 $11 {[%emt 0:03:27]} 51. Rxf7+ {[%emt 0:01:28]} Kg5 {[%emt 0:00:11]} 52. Kc4 {[%emt 0:03:35] a4 would be deadly.} Kxh5 {[%emt 0:01:44]} 53. a4 {[%emt 0:01:17]} Rf3 {[%emt 0:02:18]} 54. Rh7+ {[%emt 0:00:54]} Kg6 {[%emt 0:00:06]} 55. Rh1 {[%emt 0:01:41]} Rf4+ {[%emt 0:00:06]} 56. Kb5 {[%emt 0:00:35]} Rf5+ {[%emt 0:01:48]} 57. Kb4 {[%emt 0:00:05] Black must now prevent a5.} Rf4+ {[%emt 0:01:22]} 58. Ka3 {[%emt 0:00:05] Threatens to win with a5.} g3 {[%emt 0:07:18]} 59. Rg1 {[%emt 0:05:28]} Rg4 {[%emt 0:00:50][%mdl 8192] [#]} (59... Rf3+ $11 60. Kb4 Kg5) 60. a5 $2 {[%emt 0:00:42]} ({White must play} 60. b4 $1 $18 Kf6 61. b5) 60... Kf7 {[%emt 0:00:05] The position is equal.} 61. b4 {[%emt 0:00:00]} Ke7 {[%emt 0:00:00]} (61... g2 $2 62. a6 Rg8 63. b5 $18) 62. a6 {[%emt 0:00:00]} Kd7 {[%emt 0:00:00]} 63. a7 {[%emt 0:00:00]} Rg8 {[%emt 0:00:00]} 64. Ka4 {[%emt 0:00:00]} Kc6 {[%emt 0:00:00]} 65. Rxg3 {[%emt 0:00:00][%mdl 64] Deflection, Promotion} Rh8 {[%emt 0:00:00]} 66. Rg7 {[%emt 0:00:00]} Kb6 {[%emt 0:00:00]} 67. Kb3 {[%emt 0:00:00]} Rh3+ {[%emt 0:00:00]} 68. Kc4 {[%emt 0:00:00]} Rh4+ {[%emt 0:00:00]} 69. Kb3 {[%emt 0:00:00]} Rh3+ {[%emt 0:00:00]} 70. Ka4 {[%emt 0:00:00]} Rh8 {[%emt 0:00:00]} 71. Rh7 {[%emt 0:12:12][%mdl 64] Deflection, Promotion} Ra8 {[%emt 0:09:11]} 72. Rf7 {[%emt 0:00:11] Weighted Error Value: White=0.32/Black=0.09 (flawless)} 1/2-1/2